Workbook

Sheet Introduction

Sheet Corn Silage Pricing
F2: ( )
F3: ( )
B5: Yield and Grain Price
B6: Grain Yield Bushels/Acre | E6: 200
B7: Silage % DM | E7: 0.35
B8: Estimated Silage Yield (as fed) | E8: =L94 -> 29.29141782
B10: Corn Silage Yield (Tons Acre As Fed Basis) | E10: 29 | F10: *Users must enter a value here
B12: Prices & Adjustments | E12: Seller | F12: Buyer
B13: Local Cash Grain Price (15.5% moisture) | E13: 4.35 | F13: 4.45
B14: Corn Grain Discount $/bushel | E14: 0
B15: Local Market Price per ton for low protein forage to Buyer | F15: 100
B16: Average grain loss for harvest before black layer (Bu./Acre) | F16: =E6*0.09 -> 18
B17: Override average loss for harvest before black layer | G17: =IF(F17="",F16,F17) -> 18
B18: Gross Value/Acre | E18: =(E6*E13)-(E6*E14) -> 870 | F18: =((E6-G17)*F13)+F15*(((E10*E7/0.9)/2)) -> 1373.788889
B20: Nutrient Removal
E24: P2O5 | F24: K2O
D25: Price per lb | E25: 0.6 | F25: 0.6
E26: Grain | F26: Silage
D27: Yield | E27: =E6 -> 200 | F27: =E10 -> 29
D28: P205 lb/bu or ton | E28: 0.38 | F28: 3.6
D29: K20 lb/bu or ton | E29: 0.29 | F29: 8.3
D30: P205 $/acre | E30: =E27*E28*E25 -> 45.6 | F30: =F27*F28*E25 -> 62.64
D31: K20 $/acre | E31: =E27*E29*F25 -> 34.8 | F31: =F27*F29*F25 -> 144.42
D32: Nutrient cost $/acre | E32: =E31+E30 -> 80.4 | F32: =F31+F30 -> 207.06
D33: $ Differnece Silage vs. Grain | F33: =F32-E32 -> 126.66
B34: Harvest Costs
B36: Grain Harvest (use actual, or refer to Custom Rate Guide for estimates)
E37: Per Bushel | F37: Per Acre
B38: Combining Cost | E38: =F38/E6 -> 0.16625 | F38: 33.25
B39: Trucking Cost | E39: 0.05 | F39: =E39*E6 -> 10
B40: Drying Cost | E40: 0.1 | F40: =E40*E6 -> 20
B41: Storage Cost
B42: $/Bushel/month | E42: 0.03 | F42: =E42*E43*E6 -> 36
B43: Storage Length (months) | E43: 6
B44: % Grain Harvest and Storage Loss | F44: =E18*D44 -> 0
B45: Grain Harvest Cost | F45: =SUM(F38:F44) -> 99.25
B47: Silage Harvest Costs (use actual, or refer to Custom Rate Guides for estimates)
B63: Chopping , Hauling, and Filling $/Acre | F63: 180
B64: Storage Loss % | F64: 0.11
B65: Storage Loss ($/acre) | F65: =(F18*F64) -> 151.1167778
B66: Harvest Costs Charged to Seller or Buyer | E66: Seller | F66: Buyer
B67: Silage Harvest $/Acre | E67: =IF(I102=0,F63,"") ->  | F67: =IF(I102=1,F63,"") -> 180
B68: Harvest and Storage Loss | E68: =IF(I104=0,F65,"") ->  | F68: =IF(I104=1,F65,"") -> 151.1167778
B69: Toal Silage Harvest & Storage Cost | E69: =SUM(E67:E68) -> 0 | F69: =SUM(F67:F68) -> 331.1167778
B78: Price Comparison (range to negotiate)
B79: Seller
B80: Minimum Value/Acre Corn Silage to Seller | F80: =E18-F45+E69+F33 -> 897.41
B81: Value of Standing Corn Silage to Seller ($/ton wet basis) | F81: =F80/E10 -> 30.94517241
B82: Value of Corn Silage to Seller ($/ton DM) | F82: =F81/E7 -> 88.41477833
B83: Buyer
B84: Maximum Value/Acre Corn Silage to Buyer | F84: =F18-F69 -> 1042.672111
B85: Value of Standing Corn Silage ($/ton wet basis) | F85: =F84/E10 -> 35.95421073
B86: Value of Standing Corn for Silage ($/ton DM) | F86: =F85/E7 -> 102.7263164
H89: 25.549 | I89: =-66.7+41.7*(H89)-1.53*(H89*H89) -> -0.01634353
H90: -66.7 | I90: ='Corn Silage Pricing'!$E$6 -> 200
H91: =H90-I90 -> -266.7 | I91: c
H92: 41.7 | I92: b
H93: -1.53 | I93: a | J93: Tons DM | K93: % DM | L93: Tons As Fed
J94: =(-H92+SQRT(POWER(41.7,2)-4*H93*H91))/(2*H93) -> 10.25199624 | K94: ='Corn Silage Pricing'!$E$7 -> 0.35 | L94: =J94/K94 -> 29.29141782
H101: 3
H102: TRUE | I102: =1*H102 -> 1
H103: FALSE | I103: =1*H103 -> 0
H104: TRUE | I104: =1*H104 -> 1
B156: TRUE
B157: TRUE
B158: TRUE
C1102: TRUE

Sheet Base Pricing Formula
B11: To use, enter a cash grain price and pricing factor into the yellow cells (B16 and D16) | K11: ( )
B14: Corn Price | D14: Pricing | F14: Dollars
B15: $/bu. | D15: Factor | F15: per ton as fed
B16: 4.3 | C16: X | D16: 9 | E16: = | F16: =B16*D16 -> 38.7

Sheet Moisture Adjustment
B8: To use, enter your base price in the yellow cell (F11) | G8: ( )
C10: Base Price ($/ton as fed) at 65% Moisture
B11: % Moisture | C11: =F11-12 -> 26 | D11: =F11-8 -> 30 | E11: =F11-4 -> 34 | F11: 38 | G11: =F11+4 -> 42 | H11: =F11+8 -> 46 | I11: =F11+12 -> 50
B12: 0.71 | C12: =(C11/0.35)*0.29 -> 21.54285714 | D12: 24.85714286 | E12: 28.17142857 | F12: 31.48571429 | G12: 34.8 | H12: 38.11428571 | I12: 41.42857143
B13: 0.69 | C13: =(C11/0.35)*0.31 -> 23.02857143 | D13: 26.57142857 | E13: 30.11428571 | F13: 33.65714286 | G13: 37.2 | H13: 40.74285714 | I13: 44.28571429
B14: 0.67 | C14: =(C11/0.35)*0.33 -> 24.51428571 | D14: 28.28571429 | E14: 32.05714286 | F14: 35.82857143 | G14: 39.6 | H14: 43.37142857 | I14: 47.14285714
B15: 0.65 | C15: =C11 -> 26 | D15: 30 | E15: 34 | F15: 38 | G15: 42 | H15: 46 | I15: 50
B16: 0.63 | C16: =(C11/0.35)*0.37 -> 27.48571429 | D16: 31.71428571 | E16: 35.94285714 | F16: 40.17142857 | G16: 44.4 | H16: 48.62857143 | I16: 52.85714286
B17: 0.61 | C17: =(C11/0.35)*0.39 -> 28.97142857 | D17: 33.42857143 | E17: 37.88571429 | F17: 42.34285714 | G17: 46.8 | H17: 51.25714286 | I17: 55.71428571
B18: 0.59 | C18: =(C11/0.35)*0.41 -> 30.45714286 | D18: 35.14285714 | E18: 39.82857143 | F18: 44.51428571 | G18: 49.2 | H18: 53.88571429 | I18: 58.57142857

Sheet Estimating Corn Silage Yield
B15: Row Length (ft) | C15: Row Width
B16: 34.9 | C16: 15”
B17: 26.1 | C17: 20”
B18: 23.8 | C18: 22”
B19: 17.4 | C19: 30”
B20: 14.5 | C20: 36”
B21: 13.8 | C21: 38”
B22: 13.1 | C22: 40”
C36: $ / Acre | D36: $ / Hour | E36: $ / Ton
B37: Chop Only | C37: 165.71 | D37: 481.8 | E37: 5.57
B38: Chop/Haul/Fill | C38: N/A | D38: 629.45 | E38: 9
B39: Bagging | C39: N/A | D39: N/A | E39: 5.18
B40: Blower | C40: N/A | D40: 30.5 | E40: N/A
B42: https://www.nass.usda.gov/Statistics_by_State/Wisconsin/Publications/WI-CRate20.pdf
